bitfinex/quotes_SOLUSD_20241125
["timestamp","ask_amount","ask_price","bid_price","bid_amount"]
[1732510288607,5.48646598,252.2,252.13,23.776884]
[1732510289307,5.48646598,252.22,252.14,23.776884]
[1732510290681,16.2402,252.26,252.17,20.0]
[1732510290883,21.72666598,252.26,252.18,23.776884]
[1732510291510,5.48646598,252.24,252.18,23.776884]
[1732510291907,5.48646598,252.24,252.18,27.345684]
[1732510293894,16.2402,252.26,252.19,5.48646598]
[1732510294213,16.2402,252.26,252.2,23.776884]
[1732510294419,16.2402,252.26,252.21,5.48646598]
[1732510294717,16.2402,252.26,252.22,23.776884]
[1732510294902,6.6055,252.29,252.22,23.776884]
[1732510296015,6.6055,252.29,252.22,27.344984]
[1732510297719,15.1102,252.32,252.25,5.48646598]
[1732510297918,15.1102,252.32,252.26,23.776884]
[1732510298215,20.59666598,252.32,252.26,23.776884]
[1732510298425,20.59666598,252.32,252.25,23.776884]
[1732510298808,20.59666598,252.32,252.25,27.344584]
[1732510301822,6.4449,252.35,252.27,27.344484]
[1732510301823,5.48646598,252.34,252.27,27.344484]
[1732510302120,6.4449,252.35,252.27,27.344484]
[1732510302620,6.4449,252.35,252.29,23.776884]
[1732510303208,6.4449,252.35,252.29,27.344184]
[1732510304008,5.48646598,252.34,252.29,27.344184]
[1732510304324,5.48646598,252.34,252.26,23.776884]
[1732510305003,5.48646598,252.34,252.27,3.5676]
[1732510305203,5.48646598,252.34,252.28,23.776884]
[1732510306531,5.48646598,252.34,252.28,3.5674]
[1732510307031,5.48646598,252.34,252.29,23.776884]
[1732510308111,5.48646598,252.34,252.27,23.776884]
[1732510309330,5.48646598,252.34,252.29,23.776884]
[1732510310220,6.4449,252.35,252.29,23.776884]
[1732510310421,11.93136598,252.35,252.28,23.776884]
[1732510310616,11.93136598,252.35,252.3,23.776884]
[1732510311607,11.93136598,252.35,252.27,5.48646598]
[1732510311608,11.93136598,252.35,252.28,23.776884]
[1732510312516,11.93136598,252.35,252.28,27.344284]
[1732510318325,5.48646598,252.33,252.26,27.344484]
[1732510321031,11.93136598,252.35,252.28,23.776884]
[1732510321227,11.93136598,252.35,252.28,27.344284]
[1732510323519,5.48646598,252.33,252.28,27.344284]
[1732510331610,11.93136598,252.35,252.28,27.344284]
[1732510338735,5.48646598,252.33,252.28,27.344284]
[1732510340446,6.4449,252.35,252.28,27.344284]
[1732510341120,6.4449,252.35,252.28,36.262884]
[1732510342942,6.4449,252.35,252.29,5.48646598]
[1732510343143,6.4449,252.35,252.3,27.343984]
[1732510344618,6.4449,252.35,252.31,5.48646598]
[1732510344820,16.1573,252.38,252.32,23.776884]
[1732510345849,16.1573,252.38,252.34,23.776884]
[1732510346735,16.1573,252.38,252.35,3.5664]
[1732510350330,5.48646598,252.39,252.35,3.5664]
[1732510353636,6.5649,252.41,252.35,3.5664]
[1732510353843,5.48646598,252.4,252.35,3.5664]
[1732510354228,6.5649,252.41,252.35,3.5664]
[1732510354744,5.48646598,252.4,252.36,3.5662]
[1732510359741,5.48646598,252.4,252.32,23.776884]
[1732510359929,5.48646598,252.4,252.32,27.343684]
[1732510361943,7.82437046,252.39,252.32,27.343684]
[1732510363437,7.82437046,252.39,252.32,35.16805446]
[1732510363638,7.82437046,252.39,252.32,27.343684]
[1732510364037,7.82437046,252.37,252.32,27.343684]
[1732510366354,7.82437046,252.33,252.21,12.44333218]
[1732510366557,7.82437046,252.33,252.24,11.39237046]
[1732510366743,16.2696,252.36,252.24,11.39237046]
[1732510366744,7.82437046,252.31,252.24,11.39237046]
[1732510367249,7.82437046,252.31,252.24,3.568]
[1732510367450,16.2696,252.36,252.22,8.9206]
[1732510367451,7.82437046,252.29,252.22,8.9206]
[1732510367658,7.82437046,252.29,252.24,20.0]
[1732510368136,7.82437046,252.29,252.21,7.82437046]
[1732510368549,7.82437046,252.31,252.22,23.776884]
[1732510368737,7.82437046,252.31,252.21,7.82437046]
[1732510368738,7.82437046,252.31,252.23,7.82437046]
[1732510368937,7.82437046,252.31,252.24,27.344884]
[1732510369838,7.82437046,252.32,252.24,27.344884]
[1732510370859,7.82437046,252.32,252.26,3.5677]
[1732510373466,7.82437046,252.3,252.26,3.5677]
[1732510374546,6.3773,252.34,252.26,3.5677]
[1732510374547,7.82437046,252.32,252.26,3.5677]
[1732510377785,6.3773,252.34,252.26,3.5677]
[1732510378058,7.82437046,252.31,252.26,3.5677]
[1732510382249,7.82437046,252.31,252.25,3.5678]
[1732510382562,7.82437046,252.31,252.26,23.776884]
[1732510383359,7.82437046,252.31,252.24,27.344884]
[1732510383866,7.82437046,252.27,252.24,3.568]
[1732510384245,7.82437046,252.27,252.19,3.5687]
[1732510385070,7.82437046,252.27,252.2,23.776884]
[1732510385475,7.82437046,252.27,252.22,23.776884]
[1732510385971,7.82437046,252.27,252.21,3.5684]
[1732510386354,7.82437046,252.25,252.21,3.5684]
[1732510386562,7.82437046,252.25,252.18,27.345684]
[1732510387262,7.82437046,252.27,252.2,23.776884]
[1732510387464,7.82437046,252.27,252.21,3.5684]
[1732510391765,7.82437046,252.25,252.15,20.0]
[1732510391973,7.82437046,252.23,252.16,27.345984]
[1732510393071,7.82437046,252.21,252.12,3.5697]
[1732510393274,7.82437046,252.19,252.12,3.5697]
[1732510393573,7.82437046,252.19,252.1,11.39427046]
[1732510394349,16.48,252.26,252.1,3.5699]
[1732510394350,7.82437046,252.15,252.1,3.5699]
[1732510394573,7.82437046,252.15,252.07,3.5704]
[1732510395480,7.82437046,252.15,252.08,7.82437046]
[1732510395652,13.91717046,252.17,252.09,27.346984]
[1732510396459,13.91717046,252.17,252.11,23.776884]
[1732510397277,6.0928,252.17,252.11,27.346684]
[1732510397483,6.0928,252.17,252.13,23.776884]
[1732510398571,6.0928,252.17,252.13,27.346384]
[1732510399166,7.82437046,252.21,252.13,27.346384]
[1732510399357,7.82437046,252.21,252.15,23.776884]
[1732510400669,7.82437046,252.21,252.15,27.346084]
[1732510400854,6.4842,252.23,252.15,27.346084]
[1732510401050,6.4842,252.23,252.17,23.776884]
[1732510401768,6.4842,252.23,252.18,7.82437046]
[1732510402274,7.82437046,252.28,252.19,23.776884]
[1732510402775,7.82437046,252.28,252.21,23.776884]
[1732510404083,7.82437046,252.28,252.21,27.345284]
[1732510405090,21.4585,252.3,252.24,7.82437046]
[1732510405091,6.0462,252.3,252.24,7.82437046]
[1732510405269,6.0462,252.3,252.25,23.776884]
[1732510405469,7.82437046,252.32,252.25,23.776884]
[1732510405882,21.4453,252.36,252.19,23.776884]
[1732510405883,7.82437046,252.28,252.19,23.776884]
[1732510406063,7.82437046,252.28,252.19,31.60125446]
[1732510406981,7.82437046,252.28,252.21,23.776884]
[1732510407288,7.82437046,252.3,252.21,31.60125446]
[1732510408283,7.82437046,252.3,252.23,23.776884]
[1732510408674,21.4453,252.36,252.25,7.82437046]
[1732510408984,29.26967046,252.36,252.28,23.776884]
[1732510409470,29.26967046,252.36,252.3,23.776884]
[1732510409672,7.82437046,252.36,252.3,23.776884]
[1732510410671,6.5431,252.41,252.3,23.776884]
[1732510410672,7.82437046,252.38,252.3,27.343984]
[1732510411895,7.82437046,252.36,252.3,27.343984]
[1732510415075,6.5431,252.41,252.3,27.343984]
[1732510415375,7.82437046,252.36,252.3,27.343984]
[1732510416493,7.82437046,252.34,252.29,23.776884]
[1732510416696,7.82437046,252.34,252.27,23.776884]
[1732510418094,7.82437046,252.34,252.26,27.344584]
[1732510425685,7.82437046,252.32,252.26,27.344584]
[1732510425894,7.82437046,252.3,252.26,27.344584]
[1732510427703,7.82987762,252.3,252.26,27.344584]
[1732510428204,7.82987762,252.3,252.26,23.776884]
[1732510428402,7.82987762,252.3,252.25,23.776884]
[1732510429305,7.82987762,252.3,252.25,27.344684]
[1732510430412,7.82987762,252.3,252.25,23.776884]
[1732510430704,7.82987762,252.3,252.24,23.776884]
[1732510431294,7.82987762,252.28,252.24,23.776884]
[1732510432581,7.82987762,252.28,252.22,23.776884]
[1732510433490,7.82987762,252.28,252.23,23.776884]
[1732510433897,7.82987762,252.3,252.23,23.776884]
[1732510434510,7.82987762,252.3,252.23,3.5681]
[1732510439892,7.83050835,252.29,252.23,3.5681]
[1732510440414,7.83050835,252.29,252.21,31.60739235]
[1732510440712,7.83050835,252.29,252.23,23.776884]
[1732510441625,7.83050835,252.29,252.23,3.5681]
[1732510447805,7.83050835,252.25,252.2,27.345284]
[1732510448008,7.83050835,252.25,252.13,8.9237]
[1732510448009,7.83050835,252.25,252.18,3.5687]
[1732510448210,6.3881,252.32,252.13,8.9237]
[1732510448211,7.83050835,252.21,252.14,3.5694]
[1732510450200,7.83050835,252.17,252.07,7.83050835]
[1732510450612,7.83050835,252.15,252.07,7.83050835]
[1732510451398,7.83050835,252.15,252.08,23.776884]
[1732510451726,7.83050835,252.15,252.08,27.347084]
[1732510452217,20.0,252.21,252.1,3.57]
[1732510452521,7.83050835,252.17,252.11,23.776884]
[1732510455506,7.83050835,252.15,252.06,3.5704]
[1732510455827,7.83050835,252.15,252.07,23.776884]
[1732510456404,7.83050835,252.13,252.07,23.776884]
[1732510456726,7.83050835,252.13,252.07,27.347184]
[1732510457105,6.6424,252.15,252.0,7.83050835]
[1732510457106,7.83050835,252.09,252.0,7.83050835]
[1732510457517,7.83050835,252.09,251.96,8.9298]
[1732510457707,7.83050835,252.07,251.94,3.5722]
[1732510457897,7.83050835,252.05,251.98,7.83050835]
[1732510458313,7.83050835,252.05,251.96,7.83050835]
[1732510458825,7.83050835,252.05,251.97,3.5718]
[1732510460113,7.83050835,252.05,251.98,3.5716]
[1732510460314,7.83050835,252.05,251.99,23.776884]
[1732510460517,6.6424,252.15,251.99,23.776884]
[1732510460701,7.83050835,252.08,252.01,23.776884]
[1732510461117,7.83050835,252.06,251.99,23.776884]
[1732510461712,7.83050835,252.06,251.99,27.348384]
[1732510463635,7.83050835,252.06,251.99,23.776884]
[1732510463810,7.83050835,252.06,251.98,7.83050835]
[1732510463811,7.83050835,252.02,251.98,23.776884]
[1732510464010,7.83050835,252.02,251.96,23.776884]
[1732510464213,7.83050835,252.0,251.93,3.5722]
[1732510465617,7.83050835,252.0,251.94,23.776884]
[1732510466225,7.83050835,252.02,251.95,23.776884]
[1732510466427,7.83050835,252.04,251.99,23.776884]
[1732510467107,7.83050835,252.02,251.94,3.5722]
[1732510467306,7.83050835,252.02,251.95,23.776884]
[1732510470016,7.83050835,252.02,251.97,23.776884]
[1732510470320,7.83050835,252.04,251.97,23.776884]
[1732510470911,7.83050835,252.04,251.97,3.5718]
[1732510471113,7.83050835,252.04,251.98,23.776884]
[1732510471611,6.6424,252.05,251.98,23.776884]
[1732510472123,6.6424,252.05,252.0,23.776884]
[1732510473441,6.6424,252.05,252.02,23.776884]
[1732510473735,7.83050835,252.09,252.02,23.776884]
[1732510473949,22.4581,252.12,252.04,23.776884]
[1732510474118,30.28860835,252.12,252.04,23.776884]
[1732510474437,22.4581,252.12,252.06,23.776884]
[1732510474813,22.4581,252.12,252.05,23.776884]
[1732510475369,7.83050835,252.11,252.05,27.347484]
[1732510476027,22.4581,252.12,251.91,37.8631]
[1732510476028,7.83050835,252.09,252.0,7.83050835]
[1732510476211,7.83050835,252.07,252.01,23.776884]
[1732510476632,7.83050835,252.07,251.99,27.348384]
[1732510476937,22.4581,252.12,252.01,23.776884]
[1732510476938,7.83050835,252.09,252.01,23.776884]
[1732510477238,7.83050835,252.09,252.02,3.5711]
[1732510477608,7.83050835,252.09,252.03,23.776884]
[1732510480621,7.83050835,252.09,252.03,3.5709]
[1732510480842,7.83050835,252.09,252.04,23.776884]
[1732510481747,7.83050835,252.11,252.04,23.776884]
[1732510482157,7.83050835,252.11,252.04,31.60739235]
[1732510483450,7.83050835,252.11,252.06,23.776884]
[1732510487330,7.83050835,252.11,252.07,23.776884]
[1732510487651,6.5524,252.12,252.07,23.776884]
[1732510488551,6.5524,252.12,252.05,27.347584]
[1732510488754,7.83050835,252.13,252.05,27.347584]
[1732510489056,7.83050835,252.15,252.07,23.776884]
[1732510490262,14.30870835,252.17,252.09,23.776884]
[1732510490631,14.30870835,252.17,252.1,3.57]
[1732510490943,14.30870835,252.17,252.11,23.776884]
[1732510491640,14.30870835,252.17,252.11,27.346584]
[1732510492145,16.0547,252.18,252.11,27.346584]
[1732510495361,6.5746,252.23,252.11,27.346584]
[1732510495530,6.5746,252.23,252.15,23.776884]
[1732510495729,15.0297,252.25,252.15,23.776884]
[1732510495730,7.83050835,252.24,252.15,23.776884]
[1732510496334,7.83050835,252.24,252.16,7.83050835]
[1732510496537,7.83050835,252.24,252.17,23.776884]
[1732510496753,7.83050835,252.24,252.18,3.5688]
[1732510497058,7.83050835,252.24,252.19,23.776884]
[1732510497354,7.83050835,252.22,252.19,23.776884]
[1732510497558,7.83050835,252.22,252.17,23.776884]
[1732510498428,7.83050835,252.2,252.15,23.776884]
[1732510499342,7.83050835,252.18,252.12,3.5696]
[1732510499543,7.83050835,252.18,252.13,23.776884]
[1732510499732,7.83050835,252.18,252.1,20.0]
[1732510500549,7.83050835,252.16,252.06,15.5194]
[1732510500838,7.83050835,252.16,252.08,23.776884]
[1732510501034,7.83050835,252.14,252.08,23.776884]
[1732510501234,7.83050835,252.14,252.1,7.21109609]
[1732510501648,7.83050835,252.14,252.11,23.776884]
[1732510501848,7.83050835,252.16,252.11,23.776884]
[1732510502050,7.83050835,252.16,252.13,23.776884]
[1732510502352,7.83050835,252.18,252.13,23.776884]
[1732510502858,7.83050835,252.18,252.12,30.98798009]
[1732510504739,7.83050835,252.18,252.12,23.776884]
[1732510504949,7.83050835,252.18,252.12,30.98798009]
[1732510505156,7.83050835,252.14,252.12,23.776884]
[1732510505332,7.83050835,252.14,252.08,7.21109609]
[1732510505333,24.35300835,252.14,252.08,7.21109609]
[1732510505535,7.83050835,252.12,252.06,7.21109609]
[1732510506436,7.83050835,252.12,252.07,23.776884]
[1732510508551,7.83050835,252.08,252.03,7.21109609]
[1732510508756,7.83050835,252.08,252.01,7.21109609]
[1732510508939,7.83050835,252.06,251.99,7.21109609]
[1732510509354,7.83050835,252.06,251.99,10.78249609]
[1732510510560,7.83050835,252.04,251.96,7.21109609]
[1732510510768,7.83050835,252.04,251.91,5.16016846]
[1732510510769,7.83050835,252.02,251.94,7.21109609]
[1732510511761,16.0848,252.04,251.94,7.21109609]
[1732510511957,7.83050835,252.0,251.94,7.21109609]
[1732510513555,16.0848,252.04,251.95,23.776884]
[1732510513746,7.83050835,252.0,251.95,23.776884]
[1732510513960,7.83050835,252.0,251.94,23.776884]
[1732510517862,16.0848,252.04,251.95,7.21109609]
[1732510518070,7.83050835,252.0,251.94,23.776884]
[1732510518665,7.83050835,251.98,251.92,23.776884]
[1732510518968,7.83050835,251.98,251.9,23.776884]
[1732510519141,7.83050835,251.96,251.87,10.78419609]
[1732510519939,7.83050835,251.96,251.89,7.21109609]
[1732510520547,7.83050835,251.96,251.91,7.21109609]
[1732510521266,7.83050835,251.98,251.9,38.81848844]
[1732510521965,7.83050835,251.96,251.9,23.776884]
[1732510522175,7.83050835,251.94,251.89,23.776884]
[1732510523370,7.83050835,251.96,251.89,23.776884]
[1732510524146,6.247,252.0,251.91,7.21109609]
[1732510524147,7.83050835,251.98,251.91,7.21109609]
[1732510524351,7.83050835,251.98,251.89,23.776884]
[1732510524562,7.83050835,251.96,251.88,18.61460444]
[1732510524781,7.83050835,251.96,251.89,23.776884]
[1732510527278,7.83050835,251.96,251.91,7.21109609]
[1732510527773,6.247,252.0,251.91,7.21109609]
[1732510527774,7.83050835,251.98,251.91,7.21109609]
[1732510528472,6.247,252.0,251.94,7.21109609]
[1732510528473,14.07750835,252.0,251.94,7.21109609]
[1732510529784,14.07750835,252.0,251.92,7.21109609]
[1732510530074,14.07750835,252.0,251.94,7.21109609]
[1732510531269,14.07750835,252.0,251.96,7.21109609]
[1732510531485,7.83050835,252.02,251.96,7.21109609]
[1732510531768,16.0848,252.04,251.97,23.776884]
[1732510531974,16.0848,252.04,251.98,7.21109609]
[1732510533181,7.83050835,252.06,252.01,7.21109609]
[1732510533379,7.83050835,252.08,252.02,23.776884]
[1732510533680,7.83050835,252.08,252.03,7.21109609]
[1732510534483,15.1914,252.1,252.03,7.21109609]
[1732510534654,15.1914,252.1,252.06,7.21109609]
[1732510534974,6.2121,252.12,252.06,7.21109609]
[1732510535471,6.2121,252.12,252.04,31.60739235]
[1732510535680,6.2121,252.12,252.07,23.776884]
[1732510535974,7.83050835,252.13,252.07,23.776884]
[1732510536462,16.0646,252.16,252.07,23.776884]
[1732510536663,7.83050835,252.13,252.07,23.776884]
[1732510537578,7.83050835,252.11,252.06,7.21109609]
[1732510539072,7.83050835,252.13,252.06,7.21109609]
[1732510540362,16.0646,252.16,252.07,23.776884]
[1732510540556,7.83050835,252.13,252.07,23.776884]
[1732510541361,16.0646,252.16,252.08,7.21109609]
[1732510541563,7.83050835,252.14,252.09,23.776884]
[1732510542282,7.83050835,252.14,252.1,7.21109609]
[1732510542871,7.83050835,252.14,252.09,23.776884]
[1732510544770,7.83050835,252.16,252.1,7.21109609]
[1732510544973,7.83050835,252.18,252.13,23.776884]
[1732510545559,7.83050835,252.18,252.12,7.21109609]
[1732510546062,7.83050835,252.18,252.13,23.776884]
[1732510546984,6.4049,252.24,252.17,7.83050835]
[1732510547160,7.83050835,252.26,252.21,7.21109609]
[1732510547487,15.0767,252.28,252.21,7.21109609]
[1732510547488,22.90720835,252.28,252.21,7.21109609]
[1732510547684,7.83050835,252.26,252.18,7.21109609]
[1732510547976,7.83050835,252.26,252.2,23.776884]
[1732510548281,15.0767,252.28,252.16,7.21109609]
[1732510548282,7.83050835,252.24,252.16,7.21109609]
[1732510548586,7.83050835,252.24,252.07,6.6277]
[1732510548587,7.83050835,252.21,252.17,7.21109609]
[1732510548886,7.83050835,252.21,252.15,30.98798009]
[1732510549062,7.83050835,252.21,252.17,7.21109609]
[1732510549557,7.83050835,252.23,252.19,7.21109609]
[1732510549961,7.83050835,252.25,252.2,23.776884]
[1732510550475,7.83050835,252.21,252.14,10.78039609]
[1732510550775,7.83050835,252.21,252.15,30.98798009]
[1732510551167,7.83050835,252.21,252.18,23.776884]
[1732510553379,7.83050835,252.21,252.16,23.776884]
[1732510553581,15.0767,252.28,252.16,23.776884]
[1732510553784,7.83050835,252.22,252.16,23.776884]
[1732510553976,7.83050835,252.22,252.16,27.345884]
[1732510554163,7.83050835,252.22,252.19,23.776884]
[1732510554983,7.83050835,252.26,252.22,7.21109609]
[1732510557985,7.83050835,252.26,252.19,23.776884]
[1732510558158,7.83050835,252.26,252.22,7.21109609]
[1732510560670,15.0767,252.28,252.19,23.776884]
[1732510560671,7.83050835,252.24,252.19,23.776884]
[1732510560866,7.83050835,252.22,252.19,23.776884]
[1732510561071,7.83050835,252.2,252.16,7.21109609]
[1732510561979,7.83050835,252.22,252.18,7.21109609]
[1732510562566,7.83050835,252.24,252.18,7.21109609]
[1732510562987,7.83050835,252.24,252.16,30.98798009]
[1732510563185,7.83050835,252.24,252.18,7.21109609]
[1732510563568,15.0767,252.28,252.16,23.776884]
[1732510563569,7.83050835,252.2,252.16,30.98798009]
[1732510565091,15.0767,252.28,252.16,30.98798009]
[1732510565092,7.83050835,252.22,252.18,7.21109609]
[1732510565672,7.83050835,252.2,252.18,7.21109609]
[1732510566184,7.83050835,252.2,252.18,23.776884]
[1732510567191,7.83050835,252.2,252.16,23.776884]
[1732510568296,7.83050835,252.2,252.15,23.776884]
[1732510568598,7.83050835,252.2,252.17,7.21109609]
[1732510569492,7.83050835,252.22,252.17,7.21109609]
[1732510570673,7.83050835,252.22,252.18,23.776884]
[1732510571194,7.83050835,252.22,252.16,23.776884]
[1732510571380,7.83050835,252.2,252.16,30.98798009]
[1732510571579,7.83050835,252.2,252.15,23.776884]
[1732510572697,7.83050835,252.22,252.15,23.776884]
[1732510572920,7.83050835,252.22,252.18,23.776884]
[1732510573688,7.83050835,252.22,252.18,7.21109609]
[1732510574198,15.0767,252.28,252.19,23.776884]
[1732510574398,7.83050835,252.25,252.19,23.776884]
[1732510574792,7.83050835,252.25,252.21,23.776884]
[1732510575498,15.0767,252.28,252.21,23.776884]
[1732510575712,7.83050835,252.29,252.26,7.21109609]
[1732510580293,7.83050835,252.31,252.27,23.776884]
[1732510582898,7.83050835,252.29,252.27,23.776884]
[1732510584705,7.83050835,252.31,252.27,23.776884]
[1732510587193,15.840673,252.38,252.31,7.21109609]
[1732510587393,7.83050835,252.34,252.31,7.21109609]
[1732510587940,7.83050835,252.34,252.3,23.776884]
[1732510588112,7.83050835,252.34,252.31,7.21109609]
[1732510589717,7.83050835,252.32,252.3,23.776884]
[1732510595130,7.83050835,252.32,252.28,23.776884]
[1732510595503,7.83050835,252.3,252.28,23.776884]
[1732510595708,7.83050835,252.3,252.26,23.776884]
[1732510600911,12.78890391,252.4,252.26,23.776884]
[1732510601136,7.83050835,252.3,252.27,7.21109609]
[1732510601641,7.83050835,252.31,252.27,7.21109609]
[1732510602214,7.83050835,252.31,252.28,23.776884]
[1732510602811,7.83050835,252.31,252.26,23.776884]
[1732510604640,7.83050835,252.29,252.24,23.776884]
[1732510604942,7.83050835,252.25,252.21,7.21109609]
[1732510605120,18.92220391,252.45,252.29,7.21109609]
[1732510605318,7.83050835,252.34,252.25,7.21109609]
[1732510605636,7.83050835,252.32,252.25,7.21109609]
[1732510606537,7.83050835,252.32,252.26,23.776884]
[1732510609040,7.83050835,252.35,252.29,7.21109609]
[1732510610318,20.0,252.39,252.29,7.21109609]
[1732510610523,7.83050835,252.34,252.29,7.21109609]
[1732510610822,7.83050835,252.34,252.32,23.776884]
[1732510612440,7.83050835,252.36,252.32,23.776884]
[1732510612623,7.83050835,252.36,252.33,23.776884]
[1732510617026,20.0,252.42,252.33,23.776884]
[1732510617226,7.83050835,252.37,252.33,23.776884]
[1732510617829,7.83050835,252.35,252.33,23.776884]
[1732510618949,7.83050835,252.37,252.33,23.776884]
[1732510620649,7.83050835,252.35,252.33,23.776884]
[1732510620943,20.0,252.32,252.22,7.21109609]
[1732510621154,7.83050835,252.27,252.22,7.21109609]
[1732510621442,7.83050835,252.27,252.24,7.21109609]
[1732510622023,7.83050835,252.27,252.25,23.776884]
[1732510622646,7.83050835,252.29,252.26,7.21109609]
[1732510623434,7.83050835,252.29,252.24,30.98798009]
[1732510624239,7.83050835,252.29,252.25,7.21109609]
[1732510624546,7.83050835,252.29,252.26,23.776884]
[1732510624950,15.6353,252.35,252.28,30.98798009]
[1732510625140,7.83050835,252.33,252.28,23.776884]
[1732510625338,7.83050835,252.35,252.3,7.21109609]
[1732510625545,7.83050835,252.35,252.31,23.776884]
[1732510625929,7.83050835,252.35,252.31,30.98798009]
[1732510627043,41.3220334,252.46,252.31,30.98798009]
[1732510627044,2.78890391,252.49,252.32,22.7309]
[1732510627231,6.19928966,252.57,252.47,7.21109609]
[1732510627437,7.83050835,252.55,252.48,23.776884]
[1732510628333,7.83050835,252.53,252.48,7.21109609]
[1732510628533,7.83050835,252.53,252.46,30.98798009]
[1732510628853,7.83050835,252.51,252.46,30.98798009]
[1732510629159,7.83050835,252.49,252.45,23.776884]
[1732510629643,7.83050835,252.51,252.45,23.776884]
[1732510629852,7.83050835,252.53,252.49,23.776884]
[1732510630432,7.83050835,252.55,252.51,7.21109609]
[1732510631136,7.83050835,252.55,252.52,7.21109609]
[1732510631335,7.83050835,252.57,252.52,7.21109609]
[1732510631560,22.7289,252.61,252.52,7.21109609]
[1732510631733,7.83050835,252.57,252.53,23.776884]
[1732510632439,20.0,252.58,252.53,23.776884]
[1732510632638,12.20944235,252.57,252.53,23.776884]
[1732510640142,12.20944235,252.57,252.53,7.21109609]
[1732510641944,12.20944235,252.57,252.52,7.21109609]
[1732510642261,12.20944235,252.57,252.53,23.776884]
[1732510642944,12.20944235,252.57,252.52,7.21109609]
[1732510643143,12.20944235,252.57,252.53,23.776884]
[1732510644357,12.20944235,252.57,252.51,23.776884]
[1732510644566,12.20944235,252.55,252.51,23.776884]
[1732510644736,12.20944235,252.53,252.48,7.21109609]
[1732510644942,12.20944235,252.53,252.5,7.21109609]
[1732510645267,12.20944235,252.55,252.5,7.21109609]
[1732510645765,12.20944235,252.57,252.5,7.21109609]
[1732510645961,12.20944235,252.57,252.53,7.21109609]
[1732510647663,12.20944235,252.59,252.52,23.776884]
[1732510648069,12.20944235,252.57,252.52,23.776884]
[1732510651872,12.20944235,252.55,252.5,23.776884]
[1732510652068,12.20944235,252.55,252.51,7.21109609]
[1732510652268,7.81485381,252.55,252.51,7.21109609]
[1732510653650,7.81485381,252.55,252.49,23.776884]
[1732510656368,7.81485381,252.55,252.5,7.21109609]
[1732510657372,7.81485381,252.58,252.54,7.21109609]
[1732510658574,16.3179,252.61,252.54,7.21109609]
[1732510658753,7.81485381,252.6,252.55,7.21109609]
[1732510659561,7.81485381,252.6,252.53,23.776884]
[1732510659761,7.81485381,252.6,252.55,7.21109609]
[1732510660279,16.3179,252.61,252.55,7.21109609]
[1732510660495,7.81485381,252.62,252.57,7.21109609]
[1732510660960,7.81485381,252.62,252.55,7.21109609]
[1732510662578,7.81485381,252.6,252.55,7.21109609]
[1732510663553,7.81485381,252.6,252.53,30.98798009]
[1732510663754,7.81485381,252.57,252.51,7.21109609]
[1732510663958,7.81485381,252.57,252.47,11.37955381]
[1732510663959,7.81485381,252.57,252.54,7.21109609]
[1732510665978,7.81485381,252.59,252.54,7.21109609]
[1732510666189,7.81485381,252.59,252.55,7.21109609]
[1732510667085,7.81485381,252.59,252.56,7.21109609]
[1732510667685,7.81485381,252.61,252.56,7.21109609]
[1732510668082,20.0,252.64,252.56,7.21109609]
[1732510668281,7.81485381,252.62,252.58,7.21109609]
[1732510671790,7.81485381,252.62,252.57,23.776884]
[1732510671970,7.81485381,252.62,252.58,7.21109609]
[1732510673993,20.0,252.64,252.56,7.21109609]
[1732510673994,7.81485381,252.6,252.56,7.21109609]
[1732510674295,7.81485381,252.6,252.55,23.776884]
[1732510674990,7.81485381,252.6,252.57,7.21109609]
[1732510675179,20.0,252.64,252.57,7.21109609]
[1732510675375,7.81485381,252.61,252.57,7.21109609]
[1732510676296,20.0,252.64,252.57,7.21109609]
[1732510676503,7.81485381,252.61,252.57,7.21109609]
[1732510677694,7.81485381,252.61,252.55,23.776884]
[1732510677900,7.81485381,252.61,252.57,7.21109609]
[1732510681282,7.81485381,252.61,252.55,23.776884]
[1732510681485,7.81485381,252.61,252.57,7.21109609]
[1732510682594,7.81485381,252.61,252.55,23.776884]
[1732510682802,7.81485381,252.61,252.57,23.776884]
[1732510685799,7.81485381,252.63,252.57,23.776884]
[1732510686301,20.0,252.64,252.57,23.776884]
[1732510686499,7.81485381,252.63,252.57,23.776884]
[1732510687377,20.0,252.64,252.57,23.776884]
[1732510687578,7.81485381,252.62,252.57,23.776884]
[1732510689077,7.81485381,252.6,252.57,23.776884]
[1732510689279,7.81485381,252.6,252.55,23.776884]